fUST/lending_fUST_20250621
["ID","MTS","AMOUNT","RATE_DAILY","PERIOD"]
[366831093,1750489849120,-16316.12,0.00024397,2]
[366831094,1750489849131,-355.33534456,0.00024397,2]
[366831095,1750489849151,-2374.16036676,0.00024397,2]
[366831096,1750489849162,-7139.56728169,0.00024397,2]
[366831097,1750489849860,-374.0,0.000243,2]
[366831098,1750489883230,17913.0,0.0002465,120]
[366831302,1750490364505,-223.0,0.00021919,2]
[366831444,1750490631149,-160.0,0.00021707,2]
[366831461,1750490830146,-26.43358,0.00021707,2]
[366831462,1750490830167,-160.68617082,0.00021818,4]
[366831463,1750490830199,-550.57363856,0.000219,6]
[366831464,1750490830221,-482.68359807,0.00021918,2]
[366831465,1750490830245,-420.10227579,0.00021918,2]
[366831466,1750490830267,-300.0,0.00021918,2]
[366831467,1750490830290,-553.40181418,0.00021918,2]
[366831468,1750490830311,-24453.1074869,0.00021919,2]
[366831469,1750490830333,-168.0,0.00022,2]
[366831470,1750490830364,-550.57363839,0.00022003,6]
[366831471,1750490830395,-550.57363839,0.00022107,6]
[366831472,1750490830422,-223.0,0.00022164,3]
[366831473,1750490830444,-160.0,0.00022164,3]
[366831474,1750490830474,-550.57363839,0.0002221,6]
[366831475,1750490830496,-207.4,0.00022234,2]
[366831476,1750490830528,-550.57363839,0.00022314,7]
[366831477,1750490830550,-171.387,0.00022314,2]
[366831478,1750490830572,-154.80242363,0.00022386,2]
[366831479,1750490830604,-550.57363839,0.00022417,7]
[366831480,1750490830631,-168.0,0.00022486,2]
[366831481,1750490830661,-550.57363839,0.00022521,7]
[366831482,1750490830692,-550.57363839,0.00022624,7]
[366831483,1750490830723,-550.57363839,0.00022728,7]
[366831484,1750490830754,-550.57363839,0.00022831,8]
[366831485,1750490830780,-500.0,0.00022888,2]
[366831486,1750490830808,-500.0,0.00022888,2]
[366831487,1750490830833,-500.0,0.00022888,2]
[366831488,1750490830856,-500.0,0.00022888,2]
[366831489,1750490830880,-500.0,0.00022888,2]
[366831490,1750490830903,-382.40674349,0.00022888,2]
[366831491,1750490830925,-460.0,0.00022888,2]
[366831492,1750490830945,-380.00409345,0.00022888,2]
[366831493,1750490830966,-37810.1872824,0.00022889,8]
[366831494,1750490831000,-550.57363839,0.00022934,8]
[366831495,1750490831021,-150.0,0.00023,2]
[366831496,1750490831051,-550.57363839,0.00023038,8]
[366831497,1750490831073,-406.0,0.00023079,2]
[366831498,1750490831103,-550.57363839,0.00023141,8]
[366831499,1750490831132,-550.57363839,0.00023245,8]
[366831500,1750490831162,-550.57363839,0.00023348,9]
[366831501,1750490831192,-550.57363839,0.00023452,9]
[366831502,1750490831213,-461.0,0.00023483,3]
[366831503,1750490831245,-550.57363839,0.00023555,9]
[366831504,1750490831265,-215.0738,0.00023603,2]
[366831505,1750490831286,-154.80242363,0.00023638,2]
[366831506,1750490831315,-550.57363839,0.00023659,9]
[366831507,1750490831336,-4892.58,0.00023705,2]
[366831508,1750490831366,-550.57363839,0.00023762,9]
[366831509,1750490831388,-420.0,0.0002382,2]
[366831510,1750490831419,-550.57363839,0.00023866,10]
[366831511,1750490831440,-334.96498416,0.000239,2]
[366831512,1750490831462,-279.4556,0.00023909,4]
[366831513,1750490831486,-168.0,0.00023967,2]
[366831514,1750490831520,-550.57363839,0.00023969,10]
[366831515,1750490831541,-2203.43246263,0.00023991,2]
[366831516,1750490831562,-391.71255,0.00023999,2]
[366831517,1750490831582,-2000.0,0.00024,2]
[366831518,1750490831604,-14746.26679405,0.00024,30]
[366831655,1750491038811,-422.19053617,0.00021918,2]
[366831656,1750491038820,-460.0,0.00022888,2]
[366831657,1750491038829,-440.0,0.00023162,2]
[366831658,1750491038838,-150.0,0.000232,2]
[366831659,1750491038847,-4830.31,0.00023767,2]
[366831660,1750491038856,-154.80242363,0.000239,2]
[366831661,1750491038865,-206.46511454,0.000239,10]
[366831662,1750491038875,-239.533372,0.00023909,4]
[366831663,1750491038885,-206.46511439,0.00023943,10]
[366831665,1750491038894,-206.46511439,0.00023987,10]
[366831667,1750491038904,-4635.65026816,0.0002399,2]
[366831669,1750491038915,-1130.77446522,0.0002399,2]
[366832140,1750491045936,-460.0,0.00022888,2]
[366832141,1750491045946,-7699.48197801,0.0002399,2]
[366832142,1750491045955,-300.0,0.00023998,2]
[366832143,1750491045965,-500.0,0.00023999,2]
[366832144,1750491045974,-500.0,0.00023999,2]
[366832145,1750491045983,-500.0,0.00023999,2]
[366832146,1750491045992,-517.68472045,0.00023999,2]
[366832147,1750491046001,-85253.73320595,0.00024,30]
[366832148,1750491046011,-13842.0,0.00024,20]
[366832149,1750491046020,-18697.32488168,0.00024,2]
[366832150,1750491046029,-523.9660634,0.00024,30]
[366832151,1750491046038,-523.9660634,0.00024,3]
[366832152,1750491046046,-523.9660634,0.00024,3]
[366832153,1750491046055,-206.46511439,0.0002403,10]
[366832154,1750491046065,-206.46511439,0.00024074,10]
[366832155,1750491046074,-2000.0,0.000241,2]
[366832156,1750491046083,-206.46511439,0.00024117,10]
[366832157,1750491046092,-206.46511439,0.00024161,10]
[366832158,1750491046101,-206.46511439,0.00024204,10]
[366832159,1750491046110,-206.46511439,0.00024248,10]
[366832160,1750491046119,-206.46511439,0.00024291,10]
[366832161,1750491046131,-150.0,0.000243,5]
[366832162,1750491046140,-267.97198732,0.000243,2]
[366832163,1750491046149,-5457.43530388,0.000243,2]
[366832164,1750491046158,-206.46511439,0.00024335,11]
[366832165,1750491046167,-283.0,0.00024345,2]
[366832166,1750491046179,-267.97198731,0.00024365,2]
[366832167,1750491046188,-206.46511439,0.00024378,11]
[366832168,1750491046197,-207.4,0.00024382,2]
[366832169,1750491046206,-160.0,0.00024396,2]
[366832170,1750491046215,-3528.51312111,0.00024397,2]
[366832171,1750491046224,-7587.2312659,0.00024397,2]
[366832172,1750491046233,-13713.97996406,0.00024397,2]
[366832190,1750492157120,-300.0,0.00019999,2]
[366832191,1750492157144,-500.0,0.00019999,2]
[366832192,1750492157168,-500.0,0.00019999,2]
[366832193,1750492157192,-412.37930431,0.00019999,2]
[366832194,1750492157216,-188.27533558,0.00019999,2]
[366832195,1750492157236,-22142.49518311,0.0002,2]
[366832196,1750492157264,-37180.97215359,0.0002,2]
[366832403,1750492288021,500.0,0.00021163,2]
[366832405,1750492476357,189.0,0.00024657,120]
[366832408,1750492891992,200.0,0.00023787,120]
[366832410,1750493071459,200.0,0.00024075,120]
[366832411,1750493132720,200.0,0.00024253,120]
[366832412,1750493134139,-186.43358,0.00021723,2]
[366832413,1750493134162,-168.0,0.00021813,2]
[366832414,1750493134184,-168.0,0.0002211,2]
[366832415,1750493134213,-424.93363889,0.00022226,2]
[366832416,1750493134238,-160.0,0.00022227,2]
[366832417,1750493134259,-846.23824438,0.00022227,2]
[366832418,1750493134281,-213.55395994,0.00022227,2]
[366832419,1750493134302,-522.54663059,0.00022227,2]
[366832421,1750493243123,-5274.0,0.00021,2]
[366832422,1750493243144,-3373.3043452,0.00021735,2]
[366832423,1750493243168,-168.0,0.00021847,2]
[366832424,1750493243197,-562.9481283,0.000219,6]
[366832425,1750493243220,-168.0,0.00021956,2]
[366832426,1750493243242,-300.0,0.00022002,2]
[366832427,1750493243272,-562.94812802,0.00022003,6]
[366832428,1750493243295,-168.0,0.00022079,2]
[366832429,1750493243325,-562.94812802,0.00022107,6]
[366832430,1750493243355,-562.94812802,0.0002221,6]
[366832431,1750493243385,-562.94812802,0.00022314,7]
[366832432,1750493243408,-168.0,0.00022382,2]
[366832433,1750493243438,-562.94812802,0.00022417,7]
[366832434,1750493243461,-168.0,0.00022456,2]
[366832435,1750493243484,-436.0,0.00022478,2]
[366832436,1750493243506,-1200.0,0.00022491,2]
[366832437,1750493243528,-300.0,0.00022491,2]
[366832438,1750493243550,-428.82058859,0.00022491,2]
[366832439,1750493243579,-562.94812802,0.00022521,7]
[366832440,1750493243609,-562.94812802,0.00022624,7]
[366832441,1750493243630,-300.0,0.00022633,2]
[366832442,1750493243650,-153.947,0.00022634,2]
[366832443,1750493243672,-4970.78675677,0.00022635,2]
[366832499,1750493432886,-424.93363889,0.00021876,2]
[366832501,1750493432897,-499.20272155,0.00022634,2]
[366832503,1750493432907,-392.00159026,0.00022634,2]
[366832505,1750493432917,-300.0,0.00022634,2]
[366832507,1750493432927,-1200.0,0.00022634,2]
[366832509,1750493432937,-19929.21324323,0.00022635,2]
[366832510,1750493432947,-436.0,0.00022737,2]
[366832511,1750493432957,-436.0,0.00022792,2]
[366832513,1750493432970,-175.87807751,0.00023041,2]
[366832515,1750493432980,-406.0,0.00023119,2]
[366832517,1750493432990,-207.4,0.00023126,2]
[366832519,1750493433000,-436.0,0.00023255,2]
[366832522,1750493433010,-153.0,0.00023434,2]
[366832523,1750493433020,-153.0,0.00023435,2]
[366832525,1750493433031,-153.0,0.00023436,2]
[366832527,1750493433041,-153.0,0.00023436,2]
[366832529,1750493433050,-153.0,0.00023438,2]
[366832530,1750493433060,-153.0,0.00023438,2]
[366832533,1750493433070,-150.0,0.000235,2]
[366832535,1750493433080,-175.87807748,0.00023657,2]
[366832537,1750493433090,-4860.12,0.00023712,2]
[366832539,1750493433101,-436.0,0.00023716,2]
[366832541,1750493433111,-412.82862735,0.000239,10]
[366832543,1750493433121,-367.481977,0.00023909,4]
[366832545,1750493433131,-500.0,0.00023933,2]
[366832547,1750493433142,-500.0,0.00023933,2]
[366832549,1750493433152,-500.0,0.00023933,2]
[366832551,1750493433162,-500.0,0.00023933,2]
[366832553,1750493433171,-500.0,0.00023933,2]
[366832555,1750493433181,-500.0,0.00023933,2]
[366832557,1750493433191,-412.82862721,0.00023934,10]
[366832559,1750493433201,-2579.38602118,0.00023934,2]
[366832561,1750493433211,-412.82862721,0.00023969,10]
[366832563,1750493433221,-2000.0,0.00024,2]
[366832565,1750493433231,-2000.0,0.00024,2]
[366832567,1750493433241,-523.9660634,0.00024,3]
[366832569,1750493433251,-523.9660634,0.00024,3]
[366832571,1750493433261,-412.82862721,0.00024003,10]
[366832573,1750493433270,-412.82862721,0.00024038,10]
[366832575,1750493433280,-412.82862721,0.00024072,10]
[366832577,1750493433289,-436.0,0.00024089,2]
[366832579,1750493433299,-412.82862721,0.00024107,10]
[366832581,1750493433309,-412.82862721,0.00024141,10]
[366832583,1750493433318,-500.0,0.00024164,2]
[366832585,1750493433328,-159.0806219,0.00024164,2]
[366832587,1750493433338,-177.2671816,0.00024164,2]
[366832589,1750493433349,-574.5372799,0.00024164,2]
[366832591,1750493433358,-153.0,0.00024164,2]
[366832593,1750493433368,-153.0,0.00024164,2]
[366832595,1750493433378,-159.0806219,0.00024164,2]
[366832597,1750493433388,-177.2671816,0.00024164,2]
[366832599,1750493433397,-574.5372799,0.00024164,2]
[366832601,1750493433407,-159.0806219,0.00024164,2]
[366832603,1750493433416,-153.0,0.00024164,2]
[366832605,1750493433427,-153.0,0.00024164,2]
[366832607,1750493433436,-177.2671816,0.00024164,2]
[366832609,1750493433446,-574.5372799,0.00024164,2]
[366832611,1750493433456,-177.2671816,0.00024164,2]
[366832614,1750493433469,-159.0806219,0.00024164,2]
[366832616,1750493433479,-574.5372799,0.00024164,2]
[366832618,1750493433489,-177.2671816,0.00024164,2]
[366832620,1750493433499,-159.0806219,0.00024164,2]
[366832622,1750493433512,-153.0,0.00024164,2]
[366832625,1750493433522,-153.0,0.00024164,2]
[366832628,1750493433532,-574.5372799,0.00024164,2]
[366832630,1750493433542,-177.2671816,0.00024164,2]
[366832632,1750493433552,-574.5372799,0.00024164,2]
[366832634,1750493433563,-159.0806219,0.00024164,2]
[366832636,1750493433572,-159.0806219,0.00024164,2]
[366832638,1750493433582,-153.0,0.00024164,2]
[366832640,1750493433593,-177.2671816,0.00024164,2]
[366832643,1750493433605,-574.5372799,0.00024164,2]
[366832645,1750493433615,-153.0,0.00024164,2]
[366832647,1750493433625,-412.82862721,0.00024176,10]
[366832649,1750493433635,-412.82862721,0.0002421,10]
[366832651,1750493433645,-412.82862721,0.00024245,10]
[366832653,1750493433654,-175.87807748,0.00024274,2]
[366832655,1750493433664,-412.82862721,0.00024279,10]
[366832657,1750493433675,-16895.78238262,0.00024297,2]
[366832659,1750493433685,-441.19424249,0.00024297,2]
[366832661,1750493433695,-307.51708483,0.00024299,2]
[366832663,1750493433704,-200.0,0.000243,2]
[366832665,1750493433713,-1457.486797,0.000243,5]
[366832667,1750493433722,-202.0,0.000243,10]
[366832669,1750493433733,-412.82862721,0.00024314,10]
[366832671,1750493433742,-412.82862721,0.00024348,11]
[366832673,1750493433752,-441.19424248,0.00024362,2]
[366832675,1750493433762,-500.0,0.00024373,2]
[366832677,1750493433771,-160.70296426,0.00024373,2]
[366832679,1750493433783,-412.82862721,0.00024383,11]
[366832681,1750493433793,-179.89,0.00024387,10]
[366832683,1750493433802,-899.5,0.00024387,10]
[366832685,1750493433811,-160.0,0.00024396,2]
[366832687,1750493433821,-1764.25656055,0.00024397,2]
[366832689,1750493433832,-3793.61563295,0.00024397,2]
[366832691,1750493433843,-26655.16072794,0.00024397,2]
[366832692,1750493433857,-7211.61477973,0.00024397,2]
[366832739,1750493438818,-298.8562282,0.00023933,2]
[366832756,1750493440955,-256.7557317,0.00023933,2]
[366832758,1750493440964,-196.7242683,0.00023933,2]
[366832792,1750493443743,-303.2757317,0.00023933,2]
[366832793,1750493443753,-176.6642544,0.00024164,2]
[366832794,1750493443763,-158.6161859,0.00024164,2]
[366832795,1750493443773,-295.09990196,0.00024164,2]
[366832796,1750493443785,-277.78096914,0.00024164,2]
[366832797,1750493443795,-304.13627553,0.00024397,2]
[366832798,1750493443937,-2010.50207394,0.00024397,2]
[366832799,1750493446867,-2453.382635,0.00024397,2]
[366832806,1750493551359,200.0,0.00024243,120]
[366832807,1750493611260,200.0,0.00024209,120]
[366832810,1750493791063,200.0,0.00024611,120]
[366832811,1750493851516,200.0,0.00024113,120]
[366832812,1750493971349,200.0,0.0002418,120]
[366832813,1750494032809,200.0,0.00024559,120]
[366832814,1750494151750,200.0,0.00023741,120]
[366832815,1750494270916,200.0,0.0002408,120]
[366832819,1750494452093,-325.0,0.00021999,2]
[366832820,1750494452116,-125.0,0.00022,4]
[366832829,1750494630872,200.0,0.00024611,120]
[366832840,1750494636517,-8654.55701571,0.00022,4]
[366832841,1750494636527,-390.6090662,0.00022306,2]
[366832842,1750494636537,-300.0,0.00022766,2]
[366832843,1750494636546,-273.29188985,0.00022767,2]
[366832844,1750494636571,-26.70811015,0.00022767,2]
[366832845,1750494636581,-1324.2021638,0.00022768,2]
[366832846,1750494636590,-389.57205524,0.000229,8]
[366832847,1750494636599,-389.57205495,0.00022969,8]
[366832848,1750494636608,-460.0,0.00022987,2]
[366832849,1750494636618,-6212.34422234,0.00022987,2]
[366832850,1750494636631,-6271.77016853,0.00022987,2]
[366832851,1750494636683,-1034.57289633,0.00022987,2]
[366832852,1750494636692,-13.11931968,0.00023038,8]
[366833026,1750494640038,-151.88526998,0.00023038,8]
[366833064,1750494750798,200.0,0.00024205,120]
[366833069,1750495581929,-160.58177857,0.000219,6]
[366833070,1750495629124,-447.25556253,0.000219,6]
[366833071,1750495629145,-164.14874517,0.00021904,2]
[366833072,1750495629168,-333.5956923,0.0002199,3]
[366833107,1750495831928,-377.37104773,0.000219,6]
[366833119,1750495832039,-210.20504857,0.000219,6]
[366833121,1750495832049,-264.71654552,0.00021904,2]
[366833123,1750495832059,-239.2443077,0.0002199,3]
[366833125,1750495832069,-167.57,0.0002199,10]
[366833126,1750495832080,-300.0,0.00021997,2]
[366833128,1750495832090,-300.0,0.00021997,2]
[366833129,1750495832099,-1200.0,0.00021997,2]
[366833131,1750495832109,-500.0,0.00021998,2]
[366833132,1750495832118,-500.0,0.00021998,2]
[366833134,1750495832129,-500.0,0.00021998,2]
[366833135,1750495832138,-212.71056651,0.00021998,2]
[366833138,1750495832148,-404.99871591,0.00021998,2]
[366833140,1750495832158,-4899.97007017,0.00021998,2]
[366833142,1750495832169,-500.0,0.00021999,2]
[366833144,1750495832178,-500.0,0.00021999,2]
[366833145,1750495832187,-500.0,0.00021999,2]
[366833147,1750495832197,-500.0,0.00021999,2]
[366833148,1750495832207,-500.0,0.00021999,2]
[366833150,1750495832216,-500.0,0.00021999,2]
[366833151,1750495832226,-500.0,0.00021999,2]
[366833153,1750495832235,-500.0,0.00021999,2]
[366833154,1750495832244,-500.0,0.00021999,2]
[366833156,1750495832254,-500.0,0.00021999,2]
[366833157,1750495832263,-560.07099193,0.00021999,2]
[366833159,1750495832273,-500.0,0.00021999,2]
[366833160,1750495832282,-500.0,0.00021999,2]
[366833162,1750495832292,-500.0,0.00021999,2]
[366833163,1750495832303,-500.0,0.00021999,2]
[366833165,1750495832312,-400.0,0.00021999,2]
[366833167,1750495832322,-460.0,0.00021999,2]
[366833168,1750495832331,-153.946,0.00022,2]
[366833170,1750495832341,-882.12828028,0.00022,2]
[366833172,1750495832351,-1896.80781648,0.00022,2]
[366833173,1750495832361,-138273.87558268,0.00022,4]
[366833175,1750495832371,-587.57609626,0.00022003,6]
[366833177,1750495832381,-587.57609626,0.00022107,6]
[366833178,1750495832390,-164.14874516,0.00022163,2]
[366833180,1750495832399,-518.96624797,0.000222,2]
[366833181,1750495832409,-587.57609626,0.0002221,6]
[366833183,1750495832419,-555.21035145,0.00022263,2]
[366833184,1750495832428,-460.0,0.00022273,2]
[366833186,1750495832438,-587.57609626,0.00022314,7]
[366833188,1750495832447,-587.57609626,0.00022417,7]
[366833189,1750495832458,-160.0,0.00022442,2]
[366833191,1750495832467,-334.12987993,0.00022451,2]
[366833193,1750495832477,-24900.0,0.00022452,2]
[366833194,1750495832486,-587.57609626,0.00022521,7]
[366833196,1750495832495,-264.71654548,0.00022535,2]
[366833197,1750495832505,-478.62581149,0.00022547,2]
[366833199,1750495832514,-168.0,0.00022599,2]
[366833201,1750495832524,-168.0,0.00022599,2]
[366833202,1750495832533,-165.728079,0.00022617,2]
[366833204,1750495832543,-587.57609626,0.00022624,7]
[366833206,1750495832553,-587.57609626,0.00022728,7]
[366833207,1750495832562,-160.0,0.00022742,2]
[366833209,1750495832571,-846.23824438,0.00022742,2]
[366833217,1750495832581,-836.41202323,0.00022745,2]
[366833219,1750495832696,-424.93363889,0.00022745,2]
[366833221,1750495832707,-153.0,0.00022756,2]
[366833222,1750495832715,-442.3346339,0.00022756,2]
[366833224,1750495832725,-587.57609626,0.00022831,8]
[366833226,1750495832735,-587.57609626,0.00022934,8]
[366833227,1750495832744,-460.0,0.00022987,2]
[366833229,1750495832754,-587.57609626,0.00023038,8]
[366833231,1750495832763,-160.0,0.0002307,2]
[366833232,1750495832773,-151.0,0.00023126,2]
[366833234,1750495832783,-207.4,0.00023126,2]
[366833236,1750495832793,-689.84237767,0.00023126,2]
[366833237,1750495832802,-500.0,0.00023126,2]
[366833239,1750495832811,-5000.0,0.00023126,2]
[366833240,1750495832820,-500.0,0.00023126,2]
[366833242,1750495832830,-500.0,0.00023126,2]
[366833244,1750495832840,-500.0,0.00023126,2]
[366833245,1750495832850,-500.0,0.00023126,2]
[366833247,1750495832860,-500.0,0.00023126,2]
[366833248,1750495832869,-500.0,0.00023126,2]
[366833250,1750495832878,-500.0,0.00023126,2]
[366833252,1750495832887,-500.0,0.00023126,2]
[366833253,1750495832896,-500.0,0.00023126,2]
[366833255,1750495832906,-500.0,0.00023126,2]
[366833257,1750495832915,-500.0,0.00023126,2]
[366833258,1750495832925,-500.0,0.00023126,2]
[366833260,1750495832935,-500.0,0.00023126,2]
[366833262,1750495832944,-500.0,0.00023126,2]
[366833263,1750495832954,-500.0,0.00023126,2]
[366833265,1750495832963,-500.0,0.00023126,2]
[366833266,1750495832973,-500.0,0.00023126,2]
[366833268,1750495832982,-500.0,0.00023126,2]
[366833270,1750495832991,-500.0,0.00023126,2]
[366833271,1750495833001,-500.0,0.00023126,2]
[366833273,1750495833010,-500.0,0.00023126,2]
[366833275,1750495833020,-500.0,0.00023126,2]
[366833276,1750495833030,-500.0,0.00023126,2]
[366833278,1750495833043,-500.0,0.00023126,2]
[366833280,1750495833053,-500.0,0.00023126,2]
[366833281,1750495833062,-500.0,0.00023126,2]
[366833283,1750495833072,-500.0,0.00023126,2]
[366833284,1750495833082,-500.0,0.00023126,2]
[366833286,1750495833092,-500.0,0.00023126,2]
[366833288,1750495833102,-153.59312971,0.00023126,2]
[366833289,1750495833111,-500.0,0.00023126,2]
[366833291,1750495833121,-151.0,0.00023126,7]
[366833292,1750495833131,-151.0,0.00023126,7]
[366833294,1750495833141,-152.711265,0.00023126,7]
[366833296,1750495833150,-587.57609626,0.00023141,8]
[366833297,1750495833159,-500.0,0.00023153,2]
[366833299,1750495833168,-264.71654548,0.00023167,2]
[366833300,1750495833177,-508.35643784,0.00023181,2]
[366833302,1750495833186,-587.57609626,0.00023245,8]
[366833303,1750495833196,-460.0,0.00023261,2]
[366833305,1750495833205,-153.0,0.00023345,2]
[366833306,1750495833215,-153.0,0.00023347,2]
[366833308,1750495833224,-587.57609626,0.00023348,9]
[366833309,1750495833233,-153.0,0.00023349,2]
[366833311,1750495833243,-153.0,0.000234,2]
[366833312,1750495833252,-153.0,0.000234,2]
[366833313,1750495833262,-151.0,0.00023436,7]
[366833314,1750495833272,-151.0,0.00023436,7]
[366833315,1750495833282,-275.455862,0.00023436,7]
[366833316,1750495833291,-151.0,0.00023436,7]
[366833317,1750495833301,-151.0,0.00023436,7]
[366833318,1750495833311,-151.0,0.00023436,7]
[366833320,1750495833320,-151.0,0.00023436,7]
[366833321,1750495833331,-151.0,0.00023436,7]
[366833323,1750495833342,-151.0,0.00023436,7]
[366833324,1750495833352,-151.0,0.00023436,7]
[366833326,1750495833362,-151.0,0.00023436,7]
[366833328,1750495833372,-500.0,0.00023436,2]
[366833329,1750495833382,-139.9513285,0.00023436,2]
[366833330,1750495833402,-360.0486715,0.00023436,2]
[366833331,1750495833412,-151.0,0.00023436,7]
[366833332,1750495833422,-495.46118763,0.00023452,9]
[366833593,1750495843122,-460.48119,0.00023126,7]
[366833595,1750495843132,-460.48119,0.00023126,7]
[366833597,1750495843142,-460.48119,0.00023126,7]
[366833599,1750495843151,-92.11490863,0.00023452,9]
[366833601,1750495843161,-500.0,0.00023463,2]
[366833603,1750495843171,-500.0,0.00023463,2]
[366833605,1750495843180,-500.0,0.00023491,2]
[366833607,1750495843191,-510.29819206,0.00023491,2]
[366833608,1750495843201,-150.0,0.000235,2]
[366833609,1750495843211,-500.0,0.00023518,2]
[366833610,1750495843220,-460.0,0.00023535,2]
[366833611,1750495843230,-500.0,0.00023546,2]
[366833612,1750495843239,-587.57609626,0.00023555,9]
[366833613,1750495843249,-500.0,0.00023573,2]
[366833614,1750495843259,-500.0,0.000236,2]
[366833615,1750495843269,-500.0,0.00023628,2]
[366833616,1750495843279,-500.0,0.00023655,2]
[366833617,1750495843290,-587.57609626,0.00023659,9]
[366833618,1750495843300,-234.61678504,0.00023674,2]
[366833619,1750495843310,-5000.0,0.00023674,2]
[366833620,1750495843320,-588.22132907,0.00023683,2]
[366833621,1750495843330,-4868.48,0.00023706,2]
[366833622,1750495843339,-460.48119,0.00023706,7]
[366833623,1750495843349,-587.57609626,0.00023762,9]
[366833624,1750495843359,-264.71654548,0.00023798,2]
[366833625,1750495843368,-500.0,0.00023803,2]
[366833626,1750495843378,-151.0,0.00023803,2]
[366833627,1750495843388,-15.73464708,0.00023804,2]
[366833666,1750495845901,-460.48119,0.00023126,7]
[366833668,1750495845911,-460.48119,0.00023706,7]
[366833670,1750495845921,-152.26535292,0.00023804,2]
[366833672,1750495845930,-460.0,0.00023809,2]
[366833674,1750495845940,-500.0,0.0002383,2]
[366833676,1750495845950,-154.16487973,0.0002383,2]
[366833678,1750495845959,-500.0,0.00023858,2]
[366833680,1750495845968,-587.57609626,0.00023866,10]
[366833682,1750495845978,-500.0,0.00023885,2]
[366833684,1750495845987,-27.19375091,0.000239,2]
[366833692,1750495846061,-341.6963965,0.000239,2]
[366834168,1750496372197,-500.0,0.00021163,2]
[366834169,1750496372219,-160.0,0.00021999,2]
[366834170,1750496372241,-6825.0,0.00022125,2]
[366834172,1750496845109,-454.59141681,0.00019925,2]
[366834173,1750496845131,-1439.90858319,0.00020126,2]
[366834175,1750496947133,-332.09141681,0.0002086,2]
[366834176,1750496947154,-285.1272292,0.00021071,2]
[366834177,1750496947176,-4547.29199893,0.00021123,2]
[366834178,1750496964067,-166.80124517,0.00021123,2]
[366834179,1750497006334,500.0,0.00021163,2]
[366834194,1750497032237,-196.03617662,0.00021968,2]
[366834195,1750497032248,-300.0,0.00022119,2]
[366834196,1750497032257,-485.74349881,0.0002212,2]
[366834197,1750497032267,-500.0,0.0002212,2]
[366834198,1750497032277,-352.91121033,0.0002212,2]
[366834634,1750497038083,-500.0,0.00022119,2]
[366834636,1750497038093,-500.0,0.00022119,2]
[366834638,1750497038103,-14.04516778,0.00022119,2]
[366834642,1750497038135,-522.77253694,0.00022119,2]
[366834644,1750497038145,-500.0,0.00022119,2]
[366834647,1750497038155,-500.0,0.00022119,2]
[366834649,1750497038165,-500.0,0.00022119,2]
[366834650,1750497038175,-500.0,0.00022119,2]
[366834653,1750497038185,-500.0,0.00022119,2]
[366834655,1750497038194,-168.76810635,0.00022119,2]
[366834657,1750497038207,-331.23189365,0.00022119,2]
[366834659,1750497038217,-500.0,0.00022119,2]
[366834661,1750497038227,-500.0,0.00022119,2]
[366834663,1750497038236,-437.53401064,0.00022119,2]
[366834665,1750497038245,-501.98686104,0.00022119,2]
[366834668,1750497038255,-383.08217138,0.00022119,2]
[366834670,1750497038265,-459.14495934,0.00022119,2]
[366834672,1750497038277,-40.85504066,0.00022119,2]
[366834674,1750497038287,-468.18059167,0.00022119,2]
[366834676,1750497038296,-301.59340434,0.00022119,2]
[366834678,1750497038305,-616.28094779,0.00022119,2]